Cogmind - Beta 12 X6 @@@ ROGUE MODE // 2023.02.21 @ 17:00:31 // Winter2019/RPGLIKE Player: ArabianSandBoa Result: Destroyed by H-61 Shepherd with Heavy Assault Cannon Performance ------------- Evolutions (2) 1000 Regions Visited (5) 1000 Robots Destroyed (53) 265 Value Destroyed (1467) 1467 Prototype IDs (3) 60 Alien Tech Used (0) 0 Bonus (11) 11 TOTAL SCORE: 3803 Bonus ------- High Alert Combat Kills 11 Cogmind --------- Core Integrity 0/600 Matter 254/300 Energy 420/420 System Corruption 0% Temperature Hot (270) Movement Treading (160) Location -8/Materials Parts ------- > --- POWER (2) -------- Heavy Ion Engine Nuclear Core > --- PROPULSION (3) --- Light Treads Light Treads Improved Treads > --- UTILITY (5) ------ Advanced Targeting Computer Advanced Targeting Computer Hardened Light Armor Plating Hacking Suite > --- WEAPON (3) ------- Assault Cannon Flak Cannon Flak Cannon > --- INVENTORY (1) ---- Makeshift Spear Peak State ------------ > --- POWER ------------ Heavy Ion Engine Nuclear Core > --- PROPULSION ------- Light Treads Light Treads Improved Treads > --- UTILITY ---------- Cooling System Advanced Targeting Computer Advanced Targeting Computer Hardened Light Armor Plating Hacking Suite > --- WEAPON ----------- Assault Cannon Flak Cannon Flak Cannon > --- INVENTORY -------- Makeshift Spear [Rating: 32] Favorites ----------- Power Nuclear Core Engine Ion Engine Power Core Nuclear Core Propulsion Compact Wheel Treads Light Treads Wheel Compact Wheel Utility Signal Interpreter Device Cooling System Storage Compact Matter Pod Processor Signal Interpreter Hackware Hacking Suite Protection Improved Light Armor Plating Weapon Light Cannon Energy Gun Particle Gun Energy Cannon Particle Cannon Ballistic Gun Light Assault Rifle Ballistic Cannon Light Cannon Build | -11 -10 -10 -10 -9 -8 ------- Run | Jun Mat Min Exi Min Mat Slots Evolved 9 | 4 . 1 . 2 2 Power 1 | . . . . . 1 Propulsion 2 | . . . . 1 1 Utility 4 | 3 . 1 . . . Weapon 2 | 1 . . . 1 . Parts Attached 33 | 3 5 . . 9 16 Power 4 | . . . . 1 3 Engine 2 | . . . . 1 1 Core 2 | . . . . . 2 Reactor . | . . . . . . Propulsion 7 | 1 . . . 2 4 Treads 3 | . . . . . 3 Leg . | . . . . . . Wheel 4 | 1 . . . 2 1 Hover . | . . . . . . Flight . | . . . . . . Utility 10 | . 1 . . 4 5 Device 3 | . . . . 3 . Storage 1 | . . . . 1 . Processor 3 | . 1 . . . 2 Hackware 1 | . . . . . 1 Protection 2 | . . . . . 2 Artifact . | . . . . . . Weapon 12 | 2 4 . . 2 4 Energy Gun 1 | . . . . . 1 Energy Cannon 1 | . . . . 1 . Ballistic Gun 4 | 2 2 . . . . Ballistic Cannon 6 | . 2 . . 1 3 Launcher . | . . . . . . Special Weapon . | . . . . . . Impact Weapon . | . . . . . . Slashing Weapon . | . . . . . . Piercing Weapon . | . . . . . . Special Melee Weapon . | . . . . . . Unidentified Prototypes 1 | . . . . . 1 Parts Lost 1 | . . . . . 1 Power . | . . . . . . Propulsion . | . . . . . . Utility 1 | . . . . . 1 Weapon . | . . . . . . Highest Loss Streak 1 | . . . . . 1 To Critical Strikes . | . . . . . . Average Slot Usage (%) 65 | . 48 44 44 83 96 Engine 2 | . . . . 5 3 Core 1 | . . . . . 8 Treads 1 | . . . . . 8 Wheel 11 | . 12 11 11 11 11 Device 11 | . . . . 28 19 Storage 2 | . . . . 5 1 Processor 10 | . 10 11 11 10 8 Protection 1 | . . . . . 5 Energy Cannon 2 | . . . . 5 5 Ballistic Gun 2 | . 8 . . . . Ballistic Cannon 17 | . 16 22 22 15 12 Naked Turns . | . . . . . . Heaviest Build 40 | 3 6 6 6 18 40 Greatest Support 63 | 16 16 16 16 32 63 Greatest Overweight (x) 1 | . . . . 1 1 Average Overweight (x) . | . . . . . . Largest Inventory Capacity 1 | . 1 1 1 1 1 Average Capacity . | . . 1 1 1 1 Most Carried 1 | . . . 1 1 1 Average Carried . | . . . . . 1 Final Capacity 1 | . 1 1 1 1 1 Final Carried 1 | . . . 1 1 1 Class Distribution -------------------- 80% | Mutant 9% | Scavenger-Gunner 6% | Gunner 3% | Scavenger-Mutant Dominant Class ---------------- Mutant | -10/Materials Mutant | -10/Mines Mutant | -10/Exiles Mutant | -9/Mines Scavenger-Gunner | -8/Materials Resources | -11 -10 -10 -10 -9 -8 ----------- Run | Jun Mat Min Exi Min Mat Matter Collected 1797 | 39 586 51 166 560 395 Remotely 701 | . . . . 405 296 Salvage Created 1751 | . 508 . . 450 793 Parts 93 | . 32 4 . 23 34 Haulers Intercepted 4 | . 2 . . . 2 Recyclers Shooed 3 | . 1 . . 1 1 Parts Field Recycled . | . . . . . . Retrieved Matter . | . . . . . . Parts Self-Destructed . | . . . . . . Prevented . | . . . . . . Kills | -11 -10 -10 -10 -9 -8 ------- Run | Jun Mat Min Exi Min Mat Combat Hostiles Destroyed 33 | . 10 3 . 12 8 Guns 5 | . 5 . . . . Cannons 28 | . 5 3 . 12 8 Classes Destroyed 9 | . 7 . . 1 1 Worker 4 | . 1 . . 1 2 Builder 1 | . 1 . . . . Hauler 4 | . 2 . . . 2 Recycler 7 | . 1 . . 3 3 Watcher 4 | . 3 . . . 1 Swarmer 9 | . 3 3 . 3 . Grunt 20 | . 7 . . 8 5 Brawler 1 | . . . . 1 . Sentry 3 | . . . . . 3 Best Kill Streak 5 | . 3 3 . 5 4 Combat Bots Only 4 | . 3 3 . 4 3 Max Kills in Single Turn 2 | . 1 1 . 2 1 Gunslinging . | . . . . . . Exploded . | . . . . . . Melee . | . . . . . . Uniques/NPCs Destroyed . | . . . . . . Combat | -11 -10 -10 -10 -9 -8 -------- Run | Jun Mat Min Exi Min Mat Damage Taken 1638 | . 628 80 . 453 477 Core 1307 | . 524 66 . 371 346 Absorbed by Shields . | . . . . . . Redirected to Core 920 | . 324 41 . 262 293 Core Remaining (%) 64 | 100 . . . 28 . Volleys Fired 189 | . 105 5 . 43 36 Largest 3 | . 2 2 . 2 3 Hottest 177 | . 70 70 . 107 177 Shots Fired 410 | . 210 10 . 84 106 Gun 98 | . 76 . . . 22 Cannon 312 | . 134 10 . 84 84 Launcher . | . . . . . . Special . | . . . . . . Kinetic 352 | . 210 10 . 77 55 Thermal 58 | . . . . 7 51 Explosive . | . . . . . . Electromagnetic . | . . . . . . Robot Hit Streak 47 | . 14 9 . 9 47 Robot Miss Streak 3 | . 2 2 . 3 1 Penetration Max . | . . . . . . Secondary Targets . | . . . . . . Shots Hit Robots 204 | . 90 3 . 49 62 Core Hits 92 | . 34 3 . 18 37 Critical Kills . | . . . . . . Critical Parts Destroyed . | . . . . . . Critical Strikes 3 | . 1 . . 2 . Blast 3 | . 1 . . 2 . Melee Attacks . | . . . . . . Impact . | . . . . . . Slashing . | . . . . . . Piercing . | . . . . . . Sneak Attacks . | . . . . . . Combat Hostiles . | . . . . . . Follow-up Attacks . | . . . . . . Damage Inflicted 3707 | . 1225 60 . 1020 1402 Guns 776 | . 578 . . . 198 Cannons 2810 | . 545 60 . 1020 1185 Explosions 121 | . 102 . . . 19 Melee . | . . . . . . Ramming . | . . . . . . Kinetic 2896 | . 1123 60 . 918 795 Thermal 724 | . 34 . . 102 588 Explosive . | . . . . . . Electromagnetic 87 | . 68 . . . 19 Impact . | . . . . . . Slashing . | . . . . . . Piercing . | . . . . . . Highest Corruption . | . . . . . . Average Corruption . | . . . . . . Corruption Purged . | . . . . . . Corruption Blocked . | . . . . . . Overload Shots . | . . . . . . Overflow Damage 35 | . 5 . . 4 26 Projectiles 35 | . 5 . . 4 26 Explosions . | . . . . . . Melee . | . . . . . . Knockbacks 29 | . 10 . . 10 9 Impact . | . . . . . . Kinetic 28 | . 10 . . 9 9 Secondary 1 | . . . . 1 . Self-Inflicted Damage 72 | . 72 . . . . Shots 1 | . 1 . . . . Rammed . | . . . . . . Targets Rammed . | . . . . . . Kicked . | . . . . . . Crushed . | . . . . . . Highest Temperature 261 | . 6 . . 12 261 Average Temperature 60 | . 3 . . 8 73 Received Heat Transfer 556 | . 222 . . 235 99 Siege Activations . | . . . . . . Robots Corrupted . | . . . . . . Combat Hostiles . | . . . . . . Parts Fried 1 | . 1 . . . . Impact Corruptions . | . . . . . . Robots Melted . | . . . . . . Combat Hostiles . | . . . . . . Parts Melted 1 | . . . . . 1 Heat Transferred 1382 | . 50 . . 185 1147 Parts Sabotaged . | . . . . . . Parts Stolen . | . . . . . . Parts Stripped . | . . . . . . Power Chain Reactions 2 | . 2 . . . . Missiles Intercepted . | . . . . . . Alert | -11 -10 -10 -10 -9 -8 ------- Run | Jun Mat Min Exi Min Mat Peak Influence 407 | . 360 203 . 340 407 Initial 133 | . . 133 . . 4 Average 170 | . 171 147 . 154 219 Maximum Alert Level 2 | . 1 1 . 1 2 Low Security (%) 61 | 100 48 72 . 86 34 Level 1 36 | . 51 27 . 13 59 Level 2 1 | . . . . . 5 Level 3 . | . . . . . . Level 4 . | . . . . . . Level 5 . | . . . . . . High Security . | . . . . . . Max Security . | . . . . . . Squads Dispatched 10 | . 2 . . 1 7 Investigation 5 | . 2 . . 1 2 Extermination . | . . . . . . Reinforcement 2 | . . . . . 2 Assault . | . . . . . . Garrison 3 | . . . . . 3 Intercept . | . . . . . . Searches Triggered . | . . . . . . Construction Impeded . | . . . . . . Haulers Reinforced . | . . . . . . Active Scanning Responses . | . . . . . . Cargo Convoy Interrupts . | . . . . . . Stealth | -11 -10 -10 -10 -9 -8 --------- Run | Jun Mat Min Exi Min Mat Distress Signals 1 | . 1 . . . . Communications Jammed . | . . . . . . Distress Signals . | . . . . . . Times Spotted 57 | . 19 3 . 22 13 Peak Tracking Total 11 | . 3 3 . 11 5 Tactical Retreats 3 | . 1 . . 1 1 Traps | -11 -10 -10 -10 -9 -8 ------- Run | Jun Mat Min Exi Min Mat Traps Triggered 4 | . 4 . . . . Indirectly 4 | . 4 . . . . Trap Hack Attempts . | . . . . . . Triggered . | . . . . . . Disarmed . | . . . . . . Reprogrammed . | . . . . . . Reused . | . . . . . . Traps Extracted . | . . . . . . Installed . | . . . . . . Triggered . | . . . . . . Machines | -11 -10 -10 -10 -9 -8 ---------- Run | Jun Mat Min Exi Min Mat Machines Disabled 29 | . 18 . . 5 6 Max in Single Turn 4 | . 4 . . 2 3 Machines Repaired . | . . . . . . Machines Sabotaged . | . . . . . . Overloaded Fab Kills . | . . . . . . Hacking | -11 -10 -10 -10 -9 -8 --------- Run | Jun Mat Min Exi Min Mat Machines Accessed 15 | . 5 . 4 1 5 Terminals 9 | . 4 . . 1 4 Fabricators . | . . . . . . Repair Stations . | . . . . . . Recycling Units 1 | . 1 . . . . Scanalyzers . | . . . . . . Garrison Access 1 | . . . . . 1 Total Hacks 34 | . 12 . 4 1 17 Successful 19 | . 7 . 4 1 7 Failed 15 | . 5 . . . 10 Catastrophic 2 | . . . . . 2 Database Lockouts . | . . . . . . Manual 13 | . 4 . . 1 8 Terminals 23 | . 9 . . 1 13 Fabricators . | . . . . . . Repair Stations . | . . . . . . Recycling Units 3 | . 3 . . . . Scanalyzers . | . . . . . . Garrison Access 4 | . . . . . 4 Terminal Hacks 13 | . 5 . 4 . 4 Record 4 | . . . 4 . . Robot Analysis 2 | . 2 . . . . Prototype ID Bank 2 | . 2 . . . . Branch Access Points 1 | . . . . . 1 Transport Status 1 | . 1 . . . . Hauler Manifests 2 | . . . . . 2 Zone Layout 1 | . . . . . 1 Fabricator Hacks . | . . . . . . Repair Station Hacks . | . . . . . . Recycling Unit Hacks 1 | . 1 . . . . Retrieve Matter 1 | . 1 . . . . Scanalyzer . | . . . . . . Garrison Access Hacks 1 | . . . . . 1 Unlock Access 1 | . . . . . 1 Unauthorized Hacks 4 | . 1 . . 1 2 Terminals 4 | . 1 . . 1 2 Botnet 2 | . . . . . 2 Sabotage 2 | . 1 . . 1 . Fabricators . | . . . . . . Repair Stations . | . . . . . . Recycling Units . | . . . . . . Scanalyzers . | . . . . . . Garrison Access . | . . . . . . Data Cores Recovered . | . . . . . . Used . | . . . . . . Hacking Detections 9 | . 4 . . . 5 Full Trace Events 4 | . 1 . . . 3 Feedback Events . | . . . . . . Feedback Blocked . | . . . . . . Robot Schematics Acquired . | . . . . . . Robots Built . | . . . . . . Authchips . | . . . . . . Time . | . . . . . . Total Robot Build Rating . | . . . . . . Part Schematics Acquired . | . . . . . . Parts Built . | . . . . . . Authchips . | . . . . . . Time . | . . . . . . Total Part Build Rating . | . . . . . . Parts Repaired . | . . . . . . Time . | . . . . . . Parts Recycled . | . . . . . . Recycled Matter . | . . . . . . Retrieved Matter 150 | . 150 . . . . Retrieved Components . | . . . . . . Parts Scanalyzed . | . . . . . . Part Schematics Acquired . | . . . . . . Parts Damaged . | . . . . . . Bothacking | -11 -10 -10 -10 -9 -8 ------------ Run | Jun Mat Min Exi Min Mat Used RIF Installer . | . . . . . . Robots Hacked . | . . . . . . Non-combat . | . . . . . . Combat . | . . . . . . Robot Hacks Applied . | . . . . . . Relay Couplers Released . | . . . . . . Fabnet Peak Effective % . | . . . . . . Robots Rewired . | . . . . . . Allies Hacked . | . . . . . . Hacks Repelled . | . . . . . . Allies | -11 -10 -10 -10 -9 -8 -------- Run | Jun Mat Min Exi Min Mat Total Allies 3 | . . . . 3 . Largest Group 3 | . . . . 3 . Highest-Rated Group 40 | . . . . 40 . Highest-Rated Ally 16 | . . . . 16 . Total Orders . | . . . . . . Ally Attacks 10 | . . . . 10 . Total Damage 97 | . . . . 97 . Kills 3 | . . . . 3 . Allies Corrupted . | . . . . . . Allies Melted . | . . . . . . Intel | -11 -10 -10 -10 -9 -8 ------- Run | Jun Mat Min Exi Min Mat Robot Analysis Total 2 | . 2 . . . . Derelict Logs Recovered 1 | . . . . 1 . Drone Launches . | . . . . . . Drone Recoveries . | . . . . . . Exploration | -11 -10 -10 -10 -9 -8 ------------- Run | Jun Mat Min Exi Min Mat Turns Passed 3279 | 26 901 415 422 939 576 Spaces Moved 2330 | 22 519 395 421 627 346 Core 1 | 1 . . . . . Treads 90 | . . . . . 90 Legs . | . . . . . . Wheels 2239 | 21 519 395 421 627 256 Hover . | . . . . . . Flight . | . . . . . . Fastest Speed 50 | 50 100 100 100 100 100 Average Speed 104 | 97 100 100 100 107 116 Slowest Speed 240 | 100 100 100 100 115 240 Overloaded Moves . | . . . . . . Propulsion Burnouts . | . . . . . . Robots Hopped . | . . . . . . Cave-ins Triggered . | . . . . . . Exploration Rate (%) 62 | 4 82 78 90 90 30 Regions Visited 5 Branch Regions 3 Pre-discovered Areas 1 | . . . . 1 . Known Exits Taken 4 | . 1 1 1 1 . Unknown Exits Taken 1 | 1 . . . . . Scrap Searched 4 | . . 2 . 2 . Spaces Dug 1 | . . . . . 1 Terrain Destroyed 73 | . 64 . . 2 7 Melee . | . . . . . . Projectile 9 | . . . . 2 7 AOE 64 | . 64 . . . . Terrain Rammed . | . . . . . . Walls Destroyed . | . . . . . . Machines Disabled . | . . . . . . Actions | -11 -10 -10 -10 -9 -8 --------- Run | Jun Mat Min Exi Min Mat Total 2793 | 24 699 405 421 806 438 Wait 189 | . 54 3 . 112 20 Move 2325 | 21 518 394 420 626 346 Hop . | . . . . . . Pick Up 2 | . . . 1 1 . Fast Attach 31 | 3 5 . . 8 15 Attach . | . . . . . . Detach 1 | . . . . . 1 Swap 2 | . . . . 1 1 Drop 20 | . 4 . . 4 12 Fire 189 | . 105 5 . 43 36 Melee . | . . . . . . Ram . | . . . . . . Kick . | . . . . . . Crush . | . . . . . . Escape Stasis . | . . . . . . Rewire . | . . . . . . Trap . | . . . . . . Miscellaneous 34 | . 13 3 . 11 7 Route ------- -11/Junkyard -10/Materials (discovered 4 exits: *Mat x2 / *Min x2) -10/Mines (discovered 3 exits: *Mat x2 / *Exi) -10/Exiles (discovered 2 exits: *Min x2) -9/Mines (discovered 2 exits: *Mat x2) -8/Materials (discovered 1 exit: Gar) History --------- Turn | Location | Event 9 | -11/Junkyard | Upgraded with Utility slot (x3) 9 | -11/Junkyard | Upgraded with Weapon slot (x1) 9 | -11/Junkyard | Discovered new exit (range 17) 27 | -11/Junkyard | Entered Materials 249 | -10/Materials | Discovered new exit (range 13) 289 | -10/Materials | Core integrity fell below 50% 305 | -10/Materials | Build established: Mutant 423 | -10/Materials | Discovered new exit (range 10) 555 | -10/Materials | Reached level 2 655 | -10/Materials | Identified exit to Mines 667 | -10/Materials | Discovered exit to Mines (range 6) 693 | -10/Materials | Discovered new exit (range 7) 928 | -10/Materials | Entered Mines 930 | -10/Mines | Reached level 3 932 | -10/Mines | Deemed a non-threat by the Exiles lab entrance 932 | -10/Mines | Discovered new exit (range 5) 942 | -10/Mines | Met a Derelict bent on vengeance 966 | -10/Mines | Upgraded with Utility slot (x1) 1166 | -10/Mines | Discovered new exit (range 13) 1219 | -10/Mines | Discovered new exit (range 6) 1247 | -10/Mines | Identified exit to Materials 1342 | -10/Mines | Identified exit to Exiles 1343 | -10/Mines | Entered Exiles 1343 | -10/Exiles | Found Exiles lab abandoned 1357 | -10/Exiles | Discovered new exit (range 15) 1755 | -10/Exiles | Discovered new exit (range 11) 1763 | -10/Exiles | Identified exit to Mines 1765 | -10/Exiles | Entered Mines 1827 | -9/Mines | Discovered new exit (range 8) 1856 | -9/Mines | Reached level 4 1889 | -9/Mines | Identified exit to Materials 2043 | -9/Mines | Learned location of Storage (-9) 2077 | -9/Mines | Discovered exit to Materials (range 13) 2230 | -9/Mines | Reached level 5 2323 | -9/Mines | A weapon hastily lodged in a ceiling crevice suddenly fell to the ground 2506 | -9/Mines | Assisted by bots powering up and referring to "LRC-V3" 2542 | -9/Mines | Upgraded with Propulsion slot (x1) 2542 | -9/Mines | Upgraded with Weapon slot (x1) 2673 | -9/Mines | Assembled infested the area 2704 | -9/Mines | Entered Materials 2705 | -8/Materials | Core integrity fell below 50% 2706 | -8/Materials | Reached level 6 2779 | -8/Materials | Core integrity fell below 20% 2915 | -8/Materials | Garrison activated, responded to threat 2931 | -8/Materials | Reached level 7 2934 | -8/Materials | Upgraded with Power slot (x1) 2934 | -8/Materials | Upgraded with Propulsion slot (x1) 2956 | -8/Materials | Identified exit to Garrison 3088 | -8/Materials | Build established: Scavenger-Gunner 3280 | -8/Materials | Destroyed by H-61 Shepherd with Heavy Assault Cannon Last Messages --------------- 03187_ K-01 Serf destroyed. 03188_ Acquired 17 matter. 03207_ Dropped Tractor Beam. 03208_ Acquired Adv. Targeting Computer. 03219_ Acquired 10 matter. 03227_ R-06 Scavenger destroyed. 03228_ Acquired 14 matter. 03230_ Extracted 3 matter. 03237_ R-06 Scavenger knocked back. 03243_ K-01 Serf collects debris. 03245_ Acquired 17 matter. 03249_ K-01 Serf collects debris. 03255_ ALERT: Hostiles spotted, dispatching reinforcements to Terminal M006. 03257_ U-05 Engineer builds a Wall. 03272_ H-61 Shepherd calls for reinforcements. 03272_ ALERT: Hostile activity reported, dispatching reinforcements to area. 03274_ Cooling System destroyed. 03274_ Critical hit (Blast). Map ----- +----------------------------------------------------+ | #"###### #############%% "##?????? | | #"###### """ """ """ "############[ ###?????? | | %%###### "R """ """ T### # * ##?????? | | []+! """ """ """ "## ">" # !% ##?????? | | %*##### #### "G" %"%=%% ##?????? | | ##### !#### """ # [!= ##?????? | | ##?## #######[#### # ##?????? | | ##?## #######%############## "###?????? | | ##?## ##??# ]%= ############ ####?????? | | ####?## ^^ ##??# ############ ###??????? | | ####?## ###########??# + ## ####?????? | | ?????## ###########??# # ## #+####?????? | | ####### ###??????????# #"" ## # !!##?????? | | ! # #?????######## ###"T # + ##?????? | | # ####### # ###"" g / # ##?????? | | [ + % !%%= +=%* # #?# # #[[ ##?????? | | #= = ####### # #####g#### #[[ ##?????? | | ! !# % #?????# # % #[[ ##?????? | | ###+######### # % # ##?????? | | ##### ## # #+####?????? | | ????# """ """ #####/### # ####?????? | | ????# """ """ #??# u m # #????????? | | ????# """ """ #??# k % ###### #????????? | | ????# ???# r #????# #????????? | | ????############??##w % %% ###### #????????? | | ???????????????????# H @ #????????? | | ???????????????????#%####################????????? | | ???????????????????# #???????????????????????????? | | ???????????????????# #???????????????????????????? | | ???????????????????# #???????????????????????????? | | ???????????????????# ????????????????????????????? | | ???????????????????# ????????????????????????????? | | ???????????????????# ????????????????????????????? | | ??????????????????? ????????????????????????????? | | ??????????????????? *????????????????????????????? | | ??????????????????? ????????????????????????????? | | ??????????????????? ????????????????????????????? | | ??????????????????? ?????????????????????????????? | | ?????????????????????????????????????????????????? | | ?????????????????????????????????????????????????? | | ?????????????????????????????????????????????????? | | ?????????????????????????????????????????????????? | | ?????????????????????????????????????????????????? | | ?????????????????????????????????????????????????? | | ?????????????????????????????????????????????????? | | ?????????????????????????????????????????????????? | | ?????????????????????????????????????????????????? | | ?????????????????????????????????????????????????? | | ?????????????????????????????????????????????????? | | ?????????????????????????????????????????????????? | +----------------------------------------------------+ Best States ------------- Heat Dissipation 47 Energy Generation 23 Energy Capacity 420 Matter Stores 450 Matter Capacity 450 Sight Range 17 Terrain Scan Density 10 Armor Coverage 150 Evasion (%) 40 Targeting Accuracy 16 Recoil Reduction 3 Offensive Hacking 10 Item Schematics ----------------- None Robot Schematics ------------------ None Fabricated ------------ Nothing Alien Tech Used ----------------- None Achievements -------------- None Challenges ------------ None RPGLIKE | -11 -10 -10 -10 -9 -8 --------- Run | Jun Mat Min Exi Min Mat Levels Raised 6 | . 1 1 . 2 2 XP Earned 12320 | 3000 2755 850 200 2325 3190 XP Spent 11850 | 3000 1350 1400 . 3100 3000 Upgrades 19 | 5 4 1 . 5 4 Power Slot 1 | . . . . . 1 Propulsion Slot 2 | . . . . 1 1 Utility Slot 4 | 3 . 1 . . . Weapon Slot 2 | 1 . . . 1 . Inventory Capacity 1 | . 1 . . . . Sight Range 1 | 1 . . . . . Ranged Accuracy 6 | . 2 . . 2 2 KI Damage % 2 | . 1 . . 1 . Protomatter Created 253 | . 83 15 . 103 52 Integrity Restored 690 | . 249 45 . 240 156 Core 690 | . 249 45 . 240 156 Protomatter Decayed 23 | . . . . 23 . Game ------ Seed SmartbombSegregatorPod Manual? 1 Play Time 00:51:46 Cumulative 350.6 hours Start 2023.02.21 @ 03:16:56 End 2023.02.21 @ 17:00:31 Sessions 1 Manual Loads 0 Difficulty Rogue Special Mode Winter2019/RPGLIKE Game No. 414 Rogue 414 Adventurer 0 Explorer 0 Win Type - Total 0 Types 0/0/0/0/0/0/0/0/0 Lore% 50 Gallery% 73 Achievement% 61 Wizard Run 0 Options --------- ASCII 0 Keyboard 0 Movement Mouse Keybinds 0 Fullscreen 2 Font 24/Smallcaps Map View 76x50 Tactical HUD 1 Map Filters NONE Filters NONE Steam 1 RUN: bd3c6451-e414-48d7-8fa2-8ae0e2d1b571